bitfinex/quotes_ETHUSD_20250801
["timestamp","ask_amount","ask_price","bid_price","bid_amount"]
[1754075191005,9.483,3549.7,3549.6,3.0]
[1754075191374,9.9833,3549.7,3549.6,3.0]
[1754075191576,10.4313,3549.7,3549.6,3.0]
[1754075191822,9.483,3549.7,3549.6,3.0]
[1754075192977,9.035,3549.7,3549.6,10.55737884]
[1754075193322,9.035,3549.7,3549.6,5.81721884]
[1754075193803,9.035,3549.7,3549.6,8.24448384]
[1754075194006,9.035,3549.7,3549.6,3.0]
[1754075194401,9.035,3549.7,3549.6,5.81721884]
[1754075194608,9.035,3549.7,3549.6,9.08948384]
[1754075194609,8.935,3549.7,3549.6,9.08948384]
[1754075194839,8.935,3549.7,3549.6,11.62656084]
[1754075195322,8.935,3549.7,3549.6,5.81721884]
[1754075195831,8.935,3549.7,3549.6,14.29132584]
[1754075195975,4.3,3549.7,3549.6,8.91705684]
[1754075196179,6.865,3550.2,3550.1,5.25791806]
[1754075196381,15.8,3550.2,3550.1,5.39871806]
[1754075196995,11.165,3550.2,3550.1,5.39871806]
[1754075197224,11.065,3550.2,3550.1,5.39871806]
[1754075197378,15.699,3550.2,3550.1,8.39871806]
[1754075198482,15.699,3550.2,3550.1,5.95762206]
[1754075198981,15.699,3550.2,3550.1,8.91141906]
[1754075199182,15.699,3550.2,3550.1,8.52060806]
[1754075199924,15.699,3550.2,3550.1,5.95762206]
[1754075200134,15.699,3550.2,3550.1,8.36113006]
[1754075200297,15.699,3550.2,3550.1,5.95762206]
[1754075200497,15.699,3550.2,3550.1,9.84717106]
[1754075200498,11.399,3550.2,3550.1,9.84717106]
[1754075200898,11.399,3550.2,3550.1,5.95762206]
[1754075201696,11.399,3550.2,3549.9,2.81691084]
[1754075201697,22.24904937,3550.2,3548.3,2.81820347]
[1754075201894,0.1,3549.8,3549.4,2.8173173]
[1754075202149,6.9275,3549.7,3549.6,0.1408]
[1754075202442,4.633,3549.7,3549.6,5.95801884]
[1754075202623,4.733,3549.7,3549.6,5.95801884]
[1754075202807,0.1,3550.1,3550.0,2.8169014]
[1754075203158,5.081,3550.1,3549.6,0.1408]
[1754075203435,6.865,3550.2,3550.1,2.81682206]
[1754075203611,11.398,3550.2,3550.1,2.81682206]
[1754075204010,6.765,3550.2,3550.1,9.71573806]
[1754075204214,11.498,3550.2,3550.1,5.81682206]
[1754075204410,6.765,3550.2,3550.1,8.35258106]
[1754075204599,11.398,3550.2,3550.1,8.35258106]
[1754075204827,11.398,3550.2,3550.1,5.81682206]
[1754075205102,11.398,3550.2,3550.1,8.37975206]
[1754075205314,11.398,3550.2,3550.1,5.81682206]
[1754075205815,11.498,3550.2,3550.1,5.81682206]
[1754075205998,11.398,3550.2,3550.1,5.81682206]
[1754075206524,0.1,3550.6,3550.5,12.17607271]
[1754075206843,0.1,3550.8,3550.7,2.81634607]
[1754075207040,0.101,3551.0,3550.9,2.81618744]
[1754075207216,0.101,3551.0,3550.9,5.84434931]
[1754075207417,0.001,3551.0,3550.9,10.50259244]
[1754075207739,1.8465,3551.6,3550.9,10.50259244]
[1754075207740,0.1,3551.9,3550.9,7.686405]
[1754075207900,1.8526,3552.5,3551.2,12.014847]
[1754075207901,0.1,3552.4,3551.2,12.014847]
[1754075208100,0.1,3552.2,3552.1,2.8151665]
[1754075208303,4.632,3552.3,3552.2,2.8151568]
[1754075208630,0.1,3551.3,3550.4,2.81658404]
[1754075208831,0.1,3551.3,3551.2,5.81594953]
[1754075209002,4.632,3551.3,3551.2,5.81594953]
[1754075209341,0.4714,3552.2,3551.7,3.0]
[1754075209541,7.77704937,3552.9,3552.3,3.0]
[1754075209745,0.1,3552.0,3551.9,2.81539457]
[1754075209902,4.732,3552.0,3551.9,5.81539457]
[1754075210102,0.5714,3552.0,3551.9,3.0]
[1754075210404,7.055,3552.0,3551.9,3.0]
[1754075210601,5.2024,3552.0,3551.9,5.81539457]
[1754075211339,4.631,3552.0,3551.9,5.81539457]
[1754075212105,4.731,3552.0,3551.9,5.81539457]
[1754075212301,0.1,3552.3,3552.2,2.8151568]
[1754075212498,0.1,3552.8,3552.7,2.8147606]
[1754075212768,0.4714,3553.7,3553.1,2.81444372]
[1754075213047,4.632,3553.2,3553.1,5.84258815]
[1754075213204,4.632,3553.2,3553.1,5.81444372]
[1754075213402,0.001,3553.2,3553.1,5.81444372]
[1754075213607,1e-08,3553.6,3553.5,2.81412691]
[1754075213845,1e-08,3553.6,3553.5,18.76288917]
[1754075214140,1e-08,3553.6,3553.5,14.02748191]
[1754075214455,1e-08,3553.6,3553.5,10.13316491]
[1754075214602,1e-08,3553.6,3553.5,10.74042291]
[1754075215024,1e-08,3553.6,3553.5,3.0]
[1754075215231,2.42400001,3553.6,3553.5,3.0]
[1754075215442,0.10000001,3553.6,3553.5,9.95359491]
[1754075215616,4.63000001,3553.6,3553.5,5.81412691]
[1754075215799,4.63000001,3553.6,3553.5,8.09918391]
[1754075216004,4.73000001,3553.6,3553.5,5.81412691]
[1754075216239,5.20140001,3553.6,3553.5,3.0]
[1754075216415,5.20140001,3553.6,3553.5,5.81412691]
[1754075216618,5.20140001,3553.6,3553.5,5.95492691]
[1754075216813,5.20140001,3553.6,3553.5,3.1408]
[1754075217231,0.1,3552.9,3552.5,2.81489562]
[1754075217503,4.628,3552.9,3552.8,2.81468137]
[1754075217726,7.052,3552.9,3552.8,0.1408]
[1754075217934,0.1,3552.5,3551.7,2.81552112]
[1754075218135,4.628,3552.4,3552.3,5.93940155]
[1754075218345,0.1,3552.5,3552.4,8.26512231]
[1754075218504,0.1,3552.3,3552.2,0.21419756]
[1754075218706,2.424,3552.3,3552.0,3.0]
[1754075218913,0.5714,3552.3,3552.2,5.8151568]
[1754075219107,0.1,3552.1,3551.9,2.81536921]
[1754075219302,5.0984,3552.0,3551.9,3.0]
[1754075219625,5.0984,3552.0,3551.9,0.1408]
[1754075219831,4.627,3552.0,3551.9,5.25904257]
[1754075220031,4.627,3552.0,3551.9,8.25904257]
[1754075220228,5.0984,3552.0,3551.9,3.1408]
[1754075220845,5.1984,3552.0,3551.9,3.35205451]
[1754075221046,7.051,3552.0,3551.9,3.35205451]
[1754075221268,7.7561,3552.0,3551.9,3.21125451]
[1754075221546,7.7561,3552.0,3551.9,0.21125451]
[1754075221756,0.1,3552.0,3551.9,7.769276]
[1754075222045,0.1,3551.9,3551.5,0.1408]
[1754075222247,0.1,3551.5,3551.4,6.67246673]
[1754075222446,4.727,3551.5,3551.4,5.81579095]
[1754075222657,4.727,3551.5,3551.4,2.95659095]
[1754075222854,5.1984,3551.5,3551.4,0.20810555]
[1754075223208,0.1,3551.2,3551.1,2.8160246]
[1754075223446,2.424,3551.2,3551.1,3.85611221]
[1754075223608,0.1,3550.4,3549.4,2.81730978]
[1754075223810,4.626,3550.3,3550.2,6.01435471]
[1754075224041,4.626,3550.3,3550.2,5.89125292]
[1754075224210,4.626,3550.3,3550.2,6.65644092]
[1754075224609,4.626,3550.3,3550.2,8.96480492]
[1754075224863,4.626,3550.3,3550.2,11.73522392]
[1754075225573,0.1,3550.9,3550.8,2.81626675]
[1754075225787,0.1,3550.9,3550.8,13.21232241]
[1754075225945,4.726,3550.9,3550.8,5.81626675]
[1754075226333,0.1,3550.9,3550.8,9.14643875]
[1754075226483,0.1,3551.5,3551.4,5.81579095]
[1754075226643,4.626,3551.5,3551.4,5.81579095]
[1754075226838,0.1,3551.7,3551.6,2.81562977]
[1754075227081,6.761,3552.3,3551.7,3.0]
[1754075227280,6.761,3552.3,3552.2,3.0]
[1754075227484,0.1,3551.6,3551.5,2.81571167]
[1754075227644,4.726,3551.6,3551.5,5.81571167]
[1754075227839,0.1,3551.6,3551.5,8.26585767]
[1754075228144,0.1,3552.0,3551.9,5.81539457]
[1754075228339,4.726,3552.0,3551.9,5.81539457]
[1754075228851,4.726,3552.0,3551.9,12.21772857]
[1754075229043,4.726,3552.0,3551.9,9.26830157]
[1754075229244,4.726,3552.0,3551.9,5.81539457]
[1754075229678,4.726,3552.0,3551.9,6.03145047]
[1754075230087,5.1974,3552.0,3551.9,3.2160559]
[1754075230286,7.05,3552.0,3551.9,3.2160559]
[1754075230487,4.626,3552.0,3551.9,12.07190047]
[1754075230698,4.726,3552.0,3551.9,11.98005447]
[1754075230877,4.726,3552.0,3551.9,6.03145047]
[1754075231344,4.726,3552.0,3551.9,3.2160559]
[1754075231479,7.05,3552.0,3551.9,0.2160559]
[1754075231674,7.05,3552.0,3550.6,4.625]
[1754075231922,7.05,3552.0,3549.4,2.01111561]
[1754075231923,0.1,3551.8,3551.7,7.90095211]
[1754075232199,0.1,3552.2,3552.1,2.81523605]
[1754075232401,4.725,3552.2,3552.1,5.81523605]
[1754075232561,4.725,3552.2,3552.1,8.37559305]
[1754075232767,4.725,3552.2,3552.1,5.81523605]
[1754075232963,4.725,3552.2,3552.1,9.02759305]
[1754075233408,4.725,3552.2,3552.1,5.81523605]
[1754075234114,4.725,3552.2,3552.1,8.18703605]
[1754075234398,4.725,3552.2,3552.1,5.81523605]
[1754075234907,5.1964,3552.2,3552.1,5.81523605]
[1754075235081,7.049,3552.2,3552.1,5.81523605]
[1754075235278,7.049,3552.2,3552.1,5.95603605]
[1754075235666,0.1,3552.2,3552.1,9.12887705]
[1754075235871,6.861,3552.3,3552.2,5.8151568]
[1754075236077,11.485,3552.3,3552.2,5.8151568]
[1754075236575,11.485,3552.3,3552.2,10.2917168]
[1754075236775,11.485,3552.3,3552.2,7.8669268]
[1754075237512,11.485,3552.3,3552.2,5.8151568]
[1754075237918,4.624,3552.3,3552.2,9.2819268]
[1754075238096,0.4316,3553.7,3552.6,3.0]
[1754075238301,0.4316,3553.7,3553.5,5.81412691]
[1754075238510,1.8047,3554.0,3553.5,5.95492691]
[1754075238511,11.38400001,3553.6,3553.5,5.95492691]
[1754075238665,11.38400001,3553.6,3553.5,9.14975691]
[1754075238879,11.38400001,3553.6,3553.5,5.95492691]
[1754075239105,4.62300001,3553.6,3553.5,14.52674191]
[1754075239295,1e-08,3553.6,3553.5,14.52674191]
[1754075239614,4.62300001,3553.6,3553.5,14.52674191]
[1754075239909,6.85830001,3553.6,3553.5,0.21039195]
[1754075240121,7.32060001,3553.6,3553.3,2.81428531]
[1754075240270,1e-08,3553.6,3553.5,8.477996]
[1754075240471,4.62200001,3553.6,3553.3,0.1408]
[1754075240671,4.62200001,3553.6,3553.2,0.1408]
[1754075240883,4.62200001,3553.6,3553.3,2.380295]
[1754075240884,2.2353,3553.5,3553.3,2.380295]
[1754075241112,2.2353,3553.5,3553.2,0.1408]
[1754075241283,2.2353,3553.5,3553.2,2.95513625]
[1754075241486,6.8573,3553.4,3553.2,2.95513625]
[1754075241712,1e-08,3553.6,3553.5,2.81412691]
[1754075241922,1e-08,3553.6,3553.5,17.16221317]
[1754075242221,4.62100001,3553.6,3553.5,8.69114691]
[1754075242584,4.62100001,3553.6,3553.5,8.32360791]
[1754075242776,4.62100001,3553.6,3553.5,8.38725991]
[1754075243278,4.62100001,3553.6,3553.5,7.95764791]
[1754075244215,4.62100001,3553.6,3553.5,25.54169391]
[1754075244712,4.62000001,3553.6,3553.5,25.54169391]
[1754075245087,1e-08,3553.6,3553.5,36.40842691]
[1754075245490,0.001,3554.0,3553.9,2.81381018]
[1754075245696,0.001,3554.0,3553.9,35.98274828]
[1754075246035,0.001,3554.0,3553.9,35.95461018]
[1754075246623,2.2363,3554.0,3550.8,0.2133]
[1754075246838,0.4316,3553.9,3552.5,4.839189]
[1754075247131,4.619,3553.8,3553.5,0.1408]
[1754075247325,1.8037,3553.7,3553.5,0.1408]
[1754075247637,4.619,3553.8,3553.7,32.95469959]
[1754075247928,0.001,3554.0,3553.9,12.79575018]
[1754075248224,0.001,3554.0,3553.9,5.01316618]
[1754075248580,0.001,3554.0,3553.9,5.98274828]
[1754075248782,1e-08,3554.0,3553.9,36.40811018]
[1754075249021,1e-08,3554.0,3553.9,66.40811018]
[1754075249536,0.4316,3555.9,3554.4,2.81336586]
[1754075249697,0.4316,3555.9,3555.8,5.81230665]
[1754075249879,7.1896,3556.4,3555.9,26.17000256]
[1754075250078,4.618,3556.0,3555.9,5.81222756]
[1754075250337,7.1896,3556.4,3556.3,5.81191125]
[1754075250498,0.4326,3557.0,3556.9,2.81143692]
[1754075250832,4.619,3557.0,3556.9,31.43975205]
[1754075250979,4.619,3557.0,3556.9,25.61351905]
[1754075251278,4.619,3557.0,3556.9,24.56826028]
[1754075251480,4.619,3557.0,3556.9,21.75682336]
[1754075251721,7.3162,3557.0,3556.9,3.21534423]
[1754075251889,6.8543,3557.0,3556.9,3.21534423]
[1754075252099,4.619,3557.0,3556.9,13.66923574]
[1754075252397,6.8543,3557.0,3556.9,3.21534423]
[1754075252739,6.8543,3557.0,3556.9,3.0]
[1754075253221,6.8523,3557.0,3556.9,3.0]
[1754075253437,7.8186448,3557.0,3554.6,2.81324377]
[1754075253629,0.1408,3556.7,3556.3,0.21623085]
[1754075253780,6.8513,3556.6,3555.7,2.81231645]
[1754075254121,0.4316,3556.5,3555.8,6.746581]
[1754075254281,0.1408,3556.3,3555.9,6.746481]
[1754075254483,0.4316,3556.2,3555.7,0.1408]
[1754075254717,5.0476,3556.1,3555.7,0.1408]
[1754075254910,0.1408,3556.3,3556.1,8.724353]
[1754075255110,5.0466,3556.2,3555.7,0.1408]
[1754075255308,5.0466,3556.2,3555.9,2.81219819]
[1754075255309,0.4316,3556.1,3555.9,2.81219819]
[1754075255622,4.615,3556.2,3556.1,3.1408]
[1754075255926,4.615,3556.2,3556.1,3.35162666]
[1754075256426,5.5081,3556.2,3556.1,3.35162666]
[1754075256692,7.3118,3556.2,3556.1,3.0]
[1754075257314,10.12379032,3556.2,3556.1,3.0]
[1754075257594,7.3118,3556.2,3556.1,3.0]
[1754075257955,7.3118,3556.2,3554.3,0.4535]
[1754075258159,0.1408,3555.7,3555.4,3.0]
[1754075258385,4.614,3555.6,3555.3,2.8126882]
[1754075258570,4.614,3555.6,3555.4,3.0]
[1754075258773,0.4316,3556.6,3556.2,2.81192815]
[1754075258973,0.1418,3557.0,3556.6,3.0]
[1754075259161,0.1418,3557.0,3556.5,7.282903]
[1754075259162,4.613,3556.9,3556.5,0.1408]
[1754075259492,0.4316,3556.8,3556.6,3.0]
[1754075259788,0.4316,3556.7,3556.6,9.08763407]
[1754075260092,0.001,3557.0,3556.9,12.39001892]
[1754075260298,0.001,3557.0,3556.9,8.99976092]
[1754075260299,4.614,3557.0,3556.9,8.99976092]
[1754075260601,4.614,3557.0,3556.9,8.71938192]
[1754075260894,4.614,3557.0,3556.9,8.11349192]
[1754075262250,0.001,3557.0,3556.9,8.11349192]
[1754075262446,4.614,3557.0,3556.9,8.11349192]
[1754075262677,0.001,3557.0,3556.9,35.95223692]
[1754075262880,0.001,3557.0,3556.9,24.37385392]
[1754075263059,4.613,3557.0,3556.9,22.91725992]
[1754075263260,4.613,3557.0,3556.9,22.20654592]
[1754075263692,4.613,3557.0,3556.9,32.85708292]
[1754075263890,6.758,3557.7,3557.3,10.21830679]
[1754075264063,4.613,3557.4,3557.3,10.01755079]
[1754075264261,4.613,3557.4,3557.3,8.64040479]
[1754075264462,0.001,3557.4,3557.3,5.95192079]
[1754075264659,4.612,3557.4,3557.3,5.95192079]
[1754075264901,4.612,3557.4,3557.3,7.66159]
[1754075265101,4.612,3557.4,3557.3,8.37756079]
[1754075265407,4.612,3557.4,3557.3,11.69555679]
[1754075265750,4.612,3557.4,3557.3,11.90740855]
[1754075265952,0.001,3557.4,3557.3,11.90740855]
[1754075266399,4.612,3557.4,3557.3,28.64486955]
[1754075266566,4.612,3557.4,3557.3,28.38060055]
[1754075266971,0.001,3557.4,3557.3,28.38060055]
[1754075267171,1e-08,3557.4,3557.3,28.83240055]
[1754075267354,0.1408,3558.2,3557.3,36.61557255]
[1754075267556,6.754,3559.0,3558.9,5.80985697]
[1754075267871,11.364,3559.0,3558.9,5.80985697]
[1754075268069,11.364,3559.0,3558.9,12.33730997]
[1754075268284,11.364,3559.0,3558.9,9.01512397]
[1754075268498,11.364,3559.0,3558.9,8.30468497]
[1754075268856,0.001,3559.6,3559.0,3.0]
[1754075269057,0.1408,3559.1,3558.6,0.1408]
[1754075269270,5.0454,3559.0,3558.4,2.95097797]
[1754075269482,5.1862,3559.0,3558.8,2.217506]
[1754075269707,0.4364,3558.9,3558.7,0.1408]
[1754075270000,0.4364,3558.8,3558.7,0.1408]
[1754075270313,0.4364,3558.8,3558.7,2.95081489]
[1754075270673,0.4364,3558.8,3558.7,0.1408]
[1754075271006,3.07384,3558.8,3558.7,3.0]
[1754075271472,1.26284,3558.8,3558.7,3.0]
[1754075271809,5.19813593,3558.8,3558.7,3.0]
[1754075272096,2.3882,3558.8,3558.7,3.0]
[1754075272401,2.3882,3558.8,3557.3,0.21185176]
[1754075272402,2.81019325,3558.5,3557.3,0.21185176]
[1754075272608,0.1408,3558.3,3557.8,0.1408]
[1754075272758,2.61054926,3558.2,3557.5,2.8109092]
[1754075273083,3.04694926,3558.2,3557.6,3.0]
[1754075273285,0.1408,3558.3,3558.2,13.609925]
[1754075273608,4.607,3558.1,3558.0,19.80600285]
[1754075273784,6.751,3558.6,3558.5,2.81017282]
[1754075273987,0.1408,3559.2,3559.1,5.80969908]
[1754075274161,0.4364,3559.5,3559.4,2.80946226]
[1754075274499,0.4364,3559.5,3559.1,0.1408]
[1754075274500,0.4364,3559.4,3559.1,0.1408]
[1754075274671,4.607,3559.5,3558.5,0.2080532]
[1754075274672,4.607,3559.5,3559.4,2.80946226]
[1754075274874,4.607,3559.5,3559.3,3.0]
[1754075275074,4.607,3559.5,3559.4,5.80946226]
[1754075275275,0.001,3559.6,3559.5,5.80938334]
[1754075275495,4.607,3559.6,3559.5,5.80938334]
[1754075275700,4.607,3559.6,3559.5,35.80938334]
[1754075276020,4.607,3559.6,3559.5,32.03208434]
[1754075276229,4.607,3559.6,3559.5,31.49053334]
[1754075276428,5.0434,3559.6,3559.3,2.80952259]
[1754075276578,0.55,3559.5,3559.3,2.80949173]
[1754075276778,1.51628,3559.5,3559.4,2.80946226]
[1754075277087,1.51628,3559.5,3559.3,2.80951608]
[1754075277287,1.51628,3559.5,3559.1,2.95048507]
[1754075277288,0.9864,3559.5,3559.4,5.36395426]
[1754075277493,0.001,3559.6,3559.5,2.80938334]
[1754075277693,0.001,3559.6,3559.5,6.80987917]
[1754075277891,0.001,3559.6,3559.5,6.78178534]
[1754075277892,4.606,3559.6,3559.5,6.78178534]
[1754075278300,0.001,3559.6,3559.5,9.78178534]
[1754075278626,4.606,3559.6,3559.5,35.80938334]
[1754075279620,0.001,3559.6,3559.5,33.87883134]
[1754075280119,0.001,3559.6,3559.5,30.00088834]
[1754075280340,1.448,3559.6,3557.5,2.81096275]
[1754075280478,0.55,3559.4,3556.9,2.81137789]
[1754075280677,0.55,3559.4,3556.7,0.92891899]
[1754075280678,0.55,3558.9,3556.8,22.571114]
[1754075280920,0.55,3558.7,3557.0,2.81135788]
[1754075281215,0.55,3558.5,3556.8,26.455963]
[1754075281417,0.55,3558.3,3556.9,0.02811436]
[1754075281720,0.4364,3558.6,3557.6,3.532581]
[1754075281905,0.4364,3559.1,3557.7,0.02810804]
[1754075282113,0.55,3559.0,3558.9,8.32136597]
[1754075282282,5.154,3559.0,3558.9,5.80985697]
[1754075282478,5.154,3559.0,3558.9,10.71614697]
[1754075283022,6.749,3559.5,3559.3,2.8095412]
[1754075283222,6.749,3559.5,3559.4,5.80946226]
[1754075283744,11.352,3559.5,3559.4,12.43176126]
[1754075284502,11.902,3559.5,3559.4,5.80946226]
[1754075284817,12.3384,3559.5,3559.4,3.0]
[1754075284996,15.35856486,3559.5,3559.4,3.0]
[1754075285342,12.3384,3559.5,3559.4,3.0]
[1754075286867,0.55,3559.4,3558.7,2.8099964]
[1754075287041,0.55,3559.4,3557.5,2.81096275]
[1754075287248,0.55,3559.2,3557.7,2.81080473]
[1754075287553,0.4364,3559.3,3558.7,2.80996479]
[1754075287554,0.55,3559.0,3558.7,2.80996479]
[1754075287708,0.4364,3558.9,3558.4,3.0]
[1754075287930,0.55,3559.0,3558.6,3.1408]
[1754075288152,0.55,3558.7,3558.6,2.95089385]
[1754075288358,0.55,3558.7,3558.6,0.1408]
[1754075288359,5.5884,3558.7,3558.6,0.1408]
[1754075288535,5.5884,3558.7,3557.9,3.0]
[1754075288849,0.55,3558.6,3558.5,2.81017282]
[1754075289009,0.55,3558.6,3558.5,5.81017282]
[1754075289406,5.152,3558.6,3558.5,5.81017282]
[1754075289954,0.1408,3558.9,3558.6,5.81008586]
[1754075289955,0.55,3558.8,3558.6,5.81008586]
[1754075290253,6.749,3559.5,3559.3,2.80950765]
[1754075290558,6.749,3559.5,3559.0,3.0]
[1754075290559,4.601,3559.4,3559.0,3.0]
[1754075290708,5.0374,3559.4,3559.0,2.80977451]
[1754075290911,5.0374,3559.4,3558.0,3.0185005]
[1754075290912,5.0374,3559.4,3559.3,2.8095412]
[1754075291154,5.0374,3559.4,3559.0,2.8097553]
[1754075291451,0.55,3559.2,3558.9,3.0]
[1754075291671,2.2474,3559.3,3558.9,7.66195427]
[1754075291672,0.55,3559.0,3558.9,7.66195427]
[1754075291822,0.55,3559.0,3558.9,5.80985127]
[1754075292005,0.55,3559.0,3558.9,9.42321927]
[1754075292210,0.55,3559.4,3559.3,2.80951981]
[1754075292411,5.151,3559.4,3559.3,2.80951981]
[1754075292715,5.151,3559.4,3559.3,5.80951981]
[1754075292936,4.601,3559.4,3559.3,5.80951981]
[1754075293310,6.749,3559.5,3559.4,5.80946226]
[1754075293311,7.299,3559.5,3559.4,5.80946226]
[1754075293511,5.151,3559.4,3559.2,0.1408]
[1754075293740,7.3984,3559.4,3559.0,0.1408]
[1754075293942,0.55,3559.2,3558.8,3.0]
[1754075294290,0.55,3559.0,3558.9,3.0]
[1754075294492,0.9864,3559.0,3558.9,3.0]
[1754075294694,0.9864,3559.0,3558.9,5.80985697]
[1754075294893,5.5864,3559.0,3558.9,5.80985697]
[1754075295074,5.15,3559.0,3558.9,5.80985697]
[1754075295276,7.4791,3559.5,3559.3,2.8095412]
[1754075295277,0.55,3559.4,3559.3,2.8095412]
[1754075295586,6.8898,3559.5,3559.4,2.80946226]
[1754075295587,6.749,3559.5,3559.4,2.80946226]
[1754075295748,6.749,3559.5,3559.4,5.80946226]
[1754075295949,11.349,3559.5,3559.4,17.85349726]
[1754075296292,11.349,3559.5,3559.4,15.00297526]
[1754075296593,11.899,3559.5,3559.4,10.53095326]
[1754075296995,6.749,3559.5,3559.4,32.26542526]
[1754075297165,0.001,3559.6,3559.4,32.26542526]
[1754075297166,0.001,3559.6,3559.5,23.33047734]
[1754075297364,4.6,3559.6,3559.5,21.76113834]
[1754075297694,1.70191233,3560.0,3559.9,18.15538667]
[1754075297899,6.30091233,3560.0,3559.9,11.87236667]
[1754075298111,6.30091233,3560.0,3559.9,5.94986767]
[1754075298312,6.85091233,3560.0,3559.9,5.94986767]
[1754075298614,2.68721233,3560.0,3559.9,5.80906767]
[1754075298816,7.28621233,3560.0,3559.9,5.80906767]
[1754075299014,8.02901356,3560.0,3559.9,5.80906767]
[1754075299201,0.55,3559.9,3559.6,3.0]
[1754075299379,0.55,3559.7,3559.6,3.0]
[1754075299583,5.5843,3559.7,3559.6,5.80930441]
[1754075299785,5.5843,3559.7,3559.5,0.1408]
[1754075300025,1.17765,3559.6,3557.6,5.442447]
[1754075300202,0.9853,3559.6,3559.5,2.80938334]
[1754075300598,1.70191233,3560.0,3559.9,2.80906767]
[1754075300914,1.70191233,3560.0,3559.9,5.80906767]
[1754075301083,6.29991233,3560.0,3559.9,5.80906767]
[1754075302012,7.28521233,3560.0,3559.9,3.0]
[1754075302324,0.55,3559.9,3559.6,0.1408]
[1754075302502,0.55,3559.7,3559.6,5.80930441]
[1754075302677,5.5833,3559.7,3559.6,3.0]
[1754075303217,5.148,3559.7,3559.6,5.80930441]
[1754075303904,2.68721233,3560.0,3559.9,3.0]
[1754075304211,6.84891233,3560.0,3559.9,5.80906767]
[1754075304883,1.70191233,3560.0,3559.9,6.0179078]
[1754075305081,6.29891233,3560.0,3559.9,6.0179078]
[1754075305516,6.84891233,3560.0,3559.9,6.0179078]
[1754075305706,7.28421233,3560.0,3559.9,6.0179078]
[1754075305992,9.80840356,3560.0,3559.9,3.20884013]
[1754075306238,9.94920356,3560.0,3559.9,3.20884013]
[1754075306436,9.94920356,3560.0,3559.9,6.0179078]
[1754075306613,9.94920356,3560.0,3559.9,3.20884013]
[1754075307239,9.95020356,3560.0,3559.9,3.0]
[1754075308192,0.55,3559.9,3559.2,2.95040932]
[1754075308394,0.55,3559.9,3559.5,3.0]
[1754075308395,0.6908,3559.7,3559.5,3.0]
[1754075308619,5.146,3559.6,3559.5,3.02542879]
[1754075309836,5.146,3559.6,3559.5,0.21605388]
[1754075310032,5.5813,3559.6,3559.5,2.80938334]
[1754075310405,5.146,3559.6,3559.5,5.80938334]
[1754075310932,5.145,3559.6,3559.5,5.80938334]
[1754075311121,5.145,3559.6,3559.5,6.02089778]
[1754075312136,1.70291233,3560.0,3559.9,2.80906767]
[1754075312317,1.70291233,3560.0,3559.6,5.80930441]
[1754075312318,8.78633356,3560.0,3559.6,3.0]
[1754075312635,0.1408,3559.7,3559.5,0.21151444]
[1754075312840,0.55,3559.5,3558.7,2.80997246]
[1754075313067,0.9853,3559.6,3559.5,2.80938334]
[1754075313342,5.5793,3559.6,3559.5,3.0]
[1754075313531,7.99051,3559.6,3559.5,5.80938334]
[1754075313725,1.12201,3559.6,3559.5,5.80938334]
[1754075313927,5.144,3559.6,3559.5,5.80938334]
[1754075314539,0.55,3559.6,3559.5,5.80938334]
[1754075314737,5.144,3559.6,3559.5,5.80938334]
[1754075314916,1.70291233,3560.0,3559.9,2.80906767]
[1754075315253,6.29691233,3560.0,3559.9,5.80906767]
[1754075315450,6.24691233,3560.0,3559.9,5.80906767]
[1754075315604,6.24691233,3560.0,3559.9,5.94986767]
[1754075316335,6.24691233,3560.0,3559.9,8.87826267]
[1754075316505,6.79691233,3560.0,3559.9,5.94986767]
[1754075316853,7.23221233,3560.0,3559.9,5.94986767]
[1754075317005,9.79473356,3560.0,3559.9,3.0]
[1754075317445,7.95553356,3560.0,3559.9,5.80906767]
[1754075318105,7.95553356,3560.0,3559.9,8.35868467]
[1754075318441,7.23221233,3560.0,3559.9,5.80906767]
[1754075318643,7.23221233,3560.0,3559.9,8.36068467]
[1754075318840,1.65291233,3560.0,3559.9,8.36068467]
[1754075319041,1.65291233,3560.0,3559.9,8.50148467]
[1754075319256,6.24491233,3560.0,3559.9,26.44246167]
[1754075319548,6.24491233,3560.0,3559.9,9.44307067]
[1754075319741,6.79491233,3560.0,3559.9,5.94986767]
[1754075319910,7.23021233,3560.0,3559.9,5.80906767]
[1754075320110,7.96741356,3560.0,3559.9,3.0]
[1754075320322,6.24491233,3560.0,3559.9,5.80906767]
[1754075320533,7.23021233,3560.0,3559.9,3.1408]
[1754075320868,9.06941233,3560.0,3559.9,3.0]
[1754075321368,0.55,3559.9,3559.6,0.1408]
[1754075321533,9.06941233,3560.0,3559.3,0.002]
[1754075321534,0.55,3559.5,3559.3,0.002]
[1754075321732,0.55,3559.2,3558.4,0.1408]
[1754075321933,0.55,3558.5,3558.1,0.1408]
[1754075322140,5.141,3558.4,3558.1,3.1408]
[1754075322361,5.141,3558.4,3558.3,3.0]
[1754075322561,4.591,3558.4,3558.3,8.43369277]
[1754075322919,5.141,3558.4,3558.3,8.43369277]
[1754075323124,5.141,3558.4,3558.3,10.99015377]
[1754075323456,5.141,3558.4,3558.3,2.95113077]
[1754075323663,5.141,3558.4,3558.3,5.22371477]
[1754075324164,5.141,3558.4,3558.3,12.09661777]
[1754075324362,5.141,3558.4,3558.3,10.80243477]
[1754075324561,6.747,3559.1,3559.0,6.06895702]
[1754075324775,11.338,3559.1,3559.0,8.19446102]
[1754075324924,6.747,3559.1,3559.0,26.89894802]
[1754075325124,11.338,3559.1,3559.0,12.03170202]